bitfinex-derivatives/quotes_BNBF0:USTF0_20250617
["timestamp","ask_amount","ask_price","bid_price","bid_amount"]
[1750153864778,0.26452111,658.0,657.22,2.2739169]
[1750153865578,0.26452111,658.0,657.23,2.2739169]
[1750153865879,0.26452111,658.0,657.27,2.2739169]
[1750153866078,0.26452111,658.0,657.26,2.2739169]
[1750153866774,0.26452111,658.0,657.29,2.2739169]
[1750153866979,0.26452111,658.0,657.27,2.2739169]
[1750153867681,0.26452111,658.0,657.22,2.2739169]
[1750153867877,0.26452111,658.0,657.21,2.2739169]
[1750153868482,0.26452111,658.0,657.19,0.2645392]
[1750153871784,1.00316197,657.99,657.19,0.2645392]
[1750153871984,0.26452111,658.0,657.19,0.2645392]
[1750153872183,1.00316216,657.99,657.19,0.2645392]
[1750153872382,0.26452111,658.0,657.19,0.2645392]
[1750153873488,0.26452111,658.0,657.19,2.2739169]
[1750153874689,0.26452111,658.0,657.18,2.2739169]
[1750153875590,0.26452111,658.0,657.15,2.2739169]
[1750153876089,0.26452111,658.0,657.17,2.2739169]
[1750153876287,1.00236689,657.99,657.15,2.2739169]
[1750153876486,0.26452111,658.0,657.14,2.2739169]
[1750153876689,1.00236509,657.99,657.14,2.2739169]
[1750153876886,0.26452111,658.0,657.14,2.2739169]
[1750153877090,1.00236555,657.99,657.14,2.2739169]
[1750153877389,1.00241286,657.98,657.14,2.2739169]
[1750153877692,1.00241286,657.97,657.14,2.2739169]
[1750153877891,1.00241286,657.96,657.14,2.2739169]
[1750153878187,0.26452111,658.0,657.14,2.2739169]
[1750153878388,1.00058898,657.99,657.13,2.2739169]
[1750153878592,1.00058898,657.98,657.11,0.26458245]
[1750153878795,1.00058898,657.97,657.11,0.26458245]
[1750153878991,1.00038022,657.96,657.11,0.26458245]
[1750153879193,0.26452111,658.0,657.11,0.26458245]
[1750153879395,1.00036182,657.99,657.11,0.26458245]
[1750153879592,1.00036182,657.98,657.11,0.26458245]
[1750153879893,1.00036182,657.97,657.11,0.26458245]
[1750153880092,0.26452111,658.0,657.11,0.26458245]
[1750153880294,1.00020605,657.99,657.11,0.26458245]
[1750153880492,1.00020605,657.98,657.11,0.26458245]
[1750153880696,1.00020605,657.97,657.11,0.26458245]
[1750153880894,0.26452111,658.0,657.11,0.26458245]
[1750153881094,1.00008259,657.99,657.11,0.26458245]
[1750153881297,1.00008259,657.98,657.11,0.26458245]
[1750153881498,0.26452111,658.0,657.12,2.2739169]
[1750153881699,0.26452111,658.0,657.22,2.2739169]
[1750153882395,0.26452111,658.0,657.18,2.2739169]
[1750153883096,0.26452111,658.0,657.16,2.2739169]
[1750153883496,0.26452111,658.0,657.13,2.2739169]
[1750153885702,0.26452111,658.0,657.11,2.53849935]
[1750153886001,0.26452111,658.0,657.15,2.2739169]
[1750153886201,0.26452111,658.0,657.17,2.2739169]
[1750153886401,0.26452111,658.0,657.18,2.2739169]
[1750153886602,0.26452111,658.0,657.19,2.2739169]
[1750153887101,0.26452111,658.0,657.2,2.2739169]
[1750153887302,0.26452111,658.0,657.21,2.2739169]
[1750153887602,0.26452111,658.0,657.2,2.2739169]
[1750153888401,0.26452111,658.0,657.21,2.2739169]
[1750153889401,0.26452111,658.0,657.22,2.2739169]
[1750153889596,0.26452111,658.0,657.24,2.2739169]
[1750153890301,0.26452111,658.0,657.25,2.2739169]
[1750153892300,0.26452111,658.0,657.11,0.26458245]
[1750153892301,0.26452111,658.0,657.28,2.2739169]
[1750153892900,0.26452111,658.0,657.26,2.2739169]
[1750153893708,0.26452111,658.0,657.27,2.2739169]
[1750153893903,0.26452111,658.0,657.11,0.26458245]
[1750153893904,0.26452111,658.0,657.26,2.2739169]
[1750153894105,0.26452111,658.0,657.29,2.2739169]
[1750153895006,0.26452111,658.0,657.3,2.2739169]
[1750153896810,0.26452111,658.0,657.23,2.2739169]
[1750153897308,0.26452111,658.0,657.11,0.26458245]
[1750153897309,0.26452111,658.0,657.24,2.2739169]
[1750153898412,0.26452111,658.0,657.25,2.2739169]
[1750153898707,0.26452111,658.0,657.24,2.2739169]
[1750153899310,0.26452111,658.0,657.27,2.2739169]
[1750153899710,0.26452111,658.0,657.11,0.26458245]
[1750153899711,0.26452111,658.0,657.28,2.2739169]
[1750153900315,0.26452111,658.0,657.24,2.2739169]
[1750153901016,0.26452111,658.0,657.25,2.2739169]
[1750153901213,0.26452111,658.0,657.26,2.2739169]
[1750153902919,0.26452111,658.0,657.11,0.26458245]
[1750153902920,0.26452111,658.0,657.28,2.2739169]
[1750153903121,0.26452111,658.0,657.29,2.2739169]
[1750153903716,0.26452111,658.0,657.27,2.2739169]
[1750153903916,0.26452111,658.0,657.23,2.2739169]
[1750153904325,0.26452111,658.0,657.24,2.2739169]
[1750153904520,0.26452111,658.0,657.23,2.2739169]
[1750153906518,0.26452111,658.0,657.27,2.2739169]
[1750153907525,0.26452111,658.0,657.25,2.2739169]
[1750153908123,0.26452111,658.0,657.29,2.2739169]
[1750153908322,0.26452111,658.0,657.3,2.2739169]
[1750153911123,0.26452111,658.0,657.27,2.2739169]
[1750153911323,0.26452111,658.0,657.29,2.2739169]
[1750153912226,0.26452111,658.0,657.33,2.2739169]
[1750153914226,0.26452111,658.0,657.25,2.2739169]
[1750153914425,0.26452111,658.0,657.11,0.26458245]
[1750153914426,0.26452111,658.0,657.22,2.2739169]
[1750153914626,0.26452111,658.0,657.23,2.2739169]
[1750153914932,0.26452111,658.0,657.22,2.2739169]
[1750153915629,0.26452111,658.0,657.21,2.2739169]
[1750153915930,0.26452111,658.0,657.11,0.26458245]
[1750153918531,0.26452111,658.0,657.11,2.53849935]
[1750153918929,0.26452111,658.0,657.12,2.2739169]
[1750153920428,0.26452111,658.0,657.14,2.2739169]
[1750153920732,0.26452111,658.0,657.13,2.2739169]
[1750153921130,0.26452111,658.0,657.12,2.2739169]
[1750153921532,0.26452111,658.0,657.13,2.2739169]
[1750153922032,0.26452111,658.0,657.18,2.2739169]
[1750153922430,0.26452111,658.0,657.21,2.2739169]
[1750153924432,0.26452111,658.0,657.23,2.2739169]
[1750153926034,0.26452111,658.0,657.18,2.2739169]
[1750153936434,0.26452111,658.0,657.27,2.2739169]
[1750153936638,0.26452111,658.0,657.21,2.2739169]
[1750153937039,0.26452111,658.0,657.25,2.2739169]
[1750153938243,0.26452111,658.0,657.11,0.26458245]
[1750153938244,0.26452111,658.0,657.26,2.2739169]
[1750153938739,0.26452111,658.0,657.25,2.2739169]
[1750153939939,0.26452111,658.0,657.26,2.2739169]
[1750153940140,0.26452111,658.0,657.25,2.2739169]
[1750153940643,0.26452111,658.0,657.27,2.2739169]
[1750153941445,0.26452111,658.0,657.28,2.2739169]
[1750153942642,0.26452111,658.0,657.31,2.2739169]
[1750153942844,0.26452111,658.0,657.11,0.26458245]
[1750153942845,0.26452111,658.0,657.32,2.2739169]
[1750153943645,0.26452111,658.0,657.29,2.2739169]
[1750153944647,0.26452111,658.0,657.3,2.2739169]
[1750153945347,0.26452111,658.0,657.31,2.2739169]
[1750153945545,0.26452111,658.0,657.3,2.2739169]
[1750153946345,0.26452111,658.0,657.32,2.2739169]
[1750153946645,0.26452111,658.0,657.3,2.2739169]
[1750153946851,0.26452111,658.0,657.32,2.2739169]
[1750153947251,0.26452111,658.0,657.33,2.2739169]
[1750153947547,0.26452111,658.0,657.34,2.2739169]
[1750153947746,0.26452111,658.0,657.36,2.2739169]
[1750153947949,0.26452111,658.0,657.38,2.2739169]
[1750153948849,0.26452111,658.0,657.39,2.2739169]
[1750153949850,0.26452111,658.0,657.42,2.2739169]
[1750153950656,0.26452111,658.0,657.41,2.2739169]
[1750153950856,0.26452111,658.0,657.39,2.2739169]
[1750153951155,0.26452111,658.0,657.38,2.2739169]
[1750153951558,0.26452111,658.0,657.37,2.2739169]
[1750153952754,0.26452111,658.0,657.36,2.2739169]
[1750153952952,0.26452111,658.0,657.37,2.2739169]
[1750153953856,0.26452111,658.0,657.36,2.2739169]
[1750153954660,0.26452111,658.0,657.38,2.2739169]
[1750153954858,0.26452111,658.0,657.39,2.2739169]
[1750153955056,0.26452111,658.0,657.43,2.2739169]
[1750153955461,0.26452111,658.0,657.4,2.2739169]
[1750153957062,0.26452111,658.0,657.47,2.2739169]
[1750153958061,0.26452111,658.0,657.43,2.2739169]
[1750153958660,0.26452111,658.0,657.41,2.2739169]
[1750153958957,0.26452111,658.0,657.4,2.2739169]
[1750153959358,0.26452111,658.0,657.39,2.2739169]
[1750153959557,0.26452111,658.0,657.42,2.2739169]
[1750153960865,0.26452111,658.0,657.11,0.26458245]
[1750153960866,0.26452111,658.0,657.41,2.2739169]
[1750153961658,0.26452111,658.0,657.38,2.2739169]
[1750153961860,0.26452111,658.0,657.41,2.2739169]
[1750153964462,0.26452111,658.0,657.4,2.2739169]
[1750153965364,0.26452111,658.0,657.38,2.2739169]
[1750153966564,0.26452111,658.0,657.37,2.2739169]
[1750153967065,0.26452111,658.0,657.32,2.2739169]
[1750153967965,0.26452111,658.0,657.35,2.2739169]
[1750153968362,0.26452111,658.0,657.36,2.2739169]
[1750153968966,0.26452111,658.0,657.39,2.2739169]
[1750153969362,0.26452111,658.0,657.37,2.2739169]
[1750153969568,0.26452111,658.0,657.38,2.2739169]
[1750153970369,0.26452111,658.0,657.39,2.2739169]
[1750153970563,0.26452111,658.0,657.4,2.2739169]
[1750153971772,0.26452111,658.0,657.43,2.2739169]
[1750153972565,0.26452111,658.0,657.39,2.2739169]
[1750153972966,0.26452111,658.0,657.37,2.2739169]
[1750153973369,0.26452111,658.0,657.38,2.2739169]
[1750153974570,0.26452111,658.0,657.39,2.2739169]
[1750153975366,0.26452111,658.0,657.43,2.2739169]
[1750153976266,0.26452111,658.0,657.39,2.2739169]
[1750153977065,0.26452111,658.0,657.43,2.2739169]
[1750153978270,0.26452111,658.0,657.42,2.2739169]
[1750153978866,0.26452111,658.0,657.43,2.2739169]
[1750153979168,0.26452111,658.0,657.42,2.2739169]
[1750153979871,0.26452111,658.0,657.38,2.2739169]
[1750153981571,0.26452111,658.0,657.11,0.26458245]
[1750153981572,0.26452111,658.0,657.43,2.2739169]
[1750153981772,0.26452111,658.0,657.44,2.2739169]
[1750153982173,0.26452111,658.0,657.43,2.2739169]
[1750153982871,0.26452111,658.0,657.47,2.2739169]
[1750153983470,0.26452111,658.0,657.43,2.2739169]
[1750153984274,0.26452111,658.0,657.41,2.2739169]
[1750153984775,0.26452111,658.0,657.11,0.26458245]
[1750153988675,0.26452111,658.0,657.15,2.2739169]
[1750153988876,0.26452111,658.0,657.21,2.2739169]
[1750153989474,0.26452111,658.0,657.25,2.2739169]
[1750153989879,0.26452111,658.0,657.31,2.2739169]
[1750153990376,0.26452111,658.0,657.35,2.2739169]
[1750153990575,0.26452111,658.0,657.34,2.2739169]
[1750153990779,0.26452111,658.0,657.3,2.2739169]
[1750153991581,0.26452111,658.0,657.32,2.2739169]
[1750153992077,0.26452111,658.0,657.3,2.2739169]
[1750153992681,0.26452111,658.0,657.34,2.2739169]
[1750153992877,0.26452111,658.0,657.35,2.2739169]
[1750153993481,0.26452111,658.0,657.33,2.2739169]
[1750153993682,0.26452111,658.0,657.31,2.2739169]
[1750153994386,0.26452111,658.0,657.27,2.2739169]
[1750153997080,0.26452111,658.0,657.11,0.26458245]
[1750153997081,0.26452111,658.0,657.29,2.2739169]
[1750153997484,0.26452111,658.0,657.33,2.2739169]
[1750153997985,0.26452111,658.0,657.25,2.2739169]
[1750153998381,0.26452111,658.0,657.26,2.2739169]
[1750153999385,1.00251763,657.99,657.13,2.2739169]
[1750153999585,1.00251763,657.98,657.11,2.53849935]
[1750153999786,1.00251763,657.97,657.11,2.53849935]
[1750154000085,1.00251763,657.96,657.11,2.53849935]
[1750154000283,1.00251763,657.95,657.11,0.26458245]
[1750154000481,1.00251763,657.94,657.11,0.26458245]
[1750154000683,1.00251763,657.93,657.11,0.26458245]
[1750154000887,1.00251763,657.92,657.11,0.26458245]
[1750154001083,0.26452111,658.0,657.11,0.26458245]
[1750154001386,1.00191626,657.99,657.11,0.26458245]
[1750154001587,0.26452111,658.0,657.11,0.26458245]
[1750154001588,1.00191626,657.98,657.19,2.2739169]
[1750154001888,0.26452111,658.0,657.19,2.2739169]
[1750154002186,1.00157749,657.99,657.19,2.2739169]
[1750154002485,0.30382669,658.27,657.19,2.2739169]
[1750154002789,0.26458345,657.8,657.19,2.2739169]
[1750154002986,0.30382669,658.27,657.19,2.2739169]
[1750154002987,1.00141301,658.25,657.19,2.2739169]
[1750154003185,0.26458043,658.01,657.19,2.2739169]
[1750154003389,1.00141301,658.0,657.19,2.2739169]
[1750154003589,1.00141301,657.99,657.18,2.2739169]
[1750154003785,0.26458043,658.01,657.18,2.2739169]
[1750154004089,1.00125963,658.0,657.18,2.2739169]
[1750154004289,1.00125963,657.99,657.18,2.2739169]
[1750154004487,0.26458043,658.01,657.17,2.2739169]
[1750154004691,1.00109544,658.0,657.2,2.2739169]
[1750154004888,1.00109544,657.99,657.21,2.2739169]
[1750154005092,1.00109551,657.98,657.21,2.2739169]
[1750154005292,0.26458043,658.01,657.16,2.2739169]
[1750154005588,1.00109776,658.0,657.16,2.2739169]
[1750154005892,1.00109776,657.99,657.16,2.2739169]
[1750154006089,0.26458043,658.01,657.16,2.2739169]
[1750154006288,1.00093616,658.0,657.15,2.2739169]
[1750154006488,1.00093616,657.99,657.15,2.2739169]
[1750154006692,0.26458043,658.01,657.15,2.2739169]
[1750154006893,1.00077968,658.0,657.15,2.2739169]
[1750154007193,0.26458043,658.01,657.2,2.2739169]
[1750154008687,0.26458043,658.01,657.19,2.2739169]
[1750154008990,0.26458043,658.01,657.11,0.26458245]
[1750154008991,0.26458043,658.01,657.15,2.2739169]
[1750154009193,0.26458043,658.01,657.14,2.2739169]
[1750154009893,0.26458043,658.01,657.13,2.2739169]
[1750154010095,0.26458043,658.01,657.14,2.2739169]
[1750154010597,0.26458043,658.01,657.16,2.2739169]
[1750154012498,0.26458043,658.01,657.12,2.2739169]
[1750154013298,0.26458043,658.01,657.13,2.2739169]
[1750154013499,0.26458043,658.01,657.12,2.2739169]
[1750154015095,0.26458043,658.01,657.15,2.2739169]
[1750154015600,0.26458043,658.01,657.14,2.2739169]
[1750154016099,0.26458043,658.01,657.12,2.2739169]
[1750154017099,0.26458043,658.01,657.11,0.26458245]
[1750154028612,0.26458043,658.01,657.11,2.53849935]
[1750154029014,0.26458043,658.01,657.12,2.2739169]
[1750154030011,0.26458043,658.01,657.22,2.2739169]
[1750154030213,0.26458043,658.01,657.29,2.2739169]
[1750154030415,0.26458043,658.01,657.32,2.2739169]
[1750154030612,0.26458043,658.01,657.33,2.2739169]
[1750154030813,0.26458043,658.01,657.31,2.2739169]
[1750154031818,0.26458043,658.01,657.3,2.2739169]
[1750154034012,0.26458043,658.01,657.11,0.26458245]
[1750154034013,0.26458043,658.01,657.23,2.2739169]
[1750154035716,0.26458043,658.01,657.24,2.2739169]
[1750154036319,0.26458043,658.01,657.22,2.2739169]
[1750154037120,0.26458043,658.01,657.21,2.2739169]
[1750154037316,0.26458043,658.01,657.22,2.2739169]
[1750154037520,0.26458043,658.01,657.21,2.2739169]
[1750154038519,0.26458043,658.01,657.22,2.2739169]
[1750154038924,0.26458043,658.01,657.21,2.2739169]
[1750154040326,0.26458043,658.01,657.23,2.2739169]
[1750154041421,0.26458043,658.01,657.21,2.2739169]
[1750154041621,0.26458043,658.01,657.22,2.2739169]
[1750154042829,0.26458043,658.01,657.23,2.2739169]
[1750154043823,0.26458043,658.01,657.24,2.2739169]
[1750154044022,0.26458043,658.01,657.27,2.2739169]
[1750154045424,0.26458043,658.01,657.3,2.2739169]
[1750154046126,0.26458043,658.01,657.29,2.2739169]
[1750154047227,0.26458043,658.01,657.37,2.2739169]
[1750154047427,0.26458043,658.01,657.35,2.2739169]
[1750154047624,0.26458043,658.01,657.38,2.2739169]
[1750154047822,0.26458043,658.01,657.39,2.2739169]
[1750154048124,0.26458043,658.01,657.38,2.2739169]
[1750154048929,0.26458043,658.01,657.4,2.2739169]
[1750154050528,0.26458043,658.01,657.11,0.26458245]
[1750154050529,0.26458043,658.01,657.41,2.2739169]
[1750154051326,0.26458043,658.01,657.45,2.2739169]
[1750154052330,0.26458043,658.01,657.36,2.2739169]
[1750154052524,0.26458043,658.01,657.35,2.2739169]
[1750154053225,0.26458043,658.01,657.34,2.2739169]
[1750154053429,0.26458043,658.01,657.32,2.2739169]
[1750154053725,0.26458043,658.01,657.33,2.2739169]
[1750154054527,0.26458043,658.01,657.3,2.2739169]
[1750154056332,0.26458043,658.01,657.29,2.2739169]
[1750154057231,0.26458043,658.01,657.22,2.2739169]
[1750154057429,0.26458043,658.01,657.24,2.2739169]
[1750154058333,0.26458043,658.01,657.25,2.2739169]
[1750154058633,0.26458043,658.01,657.33,2.2739169]
[1750154058933,0.26458043,658.01,657.34,2.2739169]
[1750154059232,0.26458043,658.01,657.33,2.2739169]
[1750154059630,0.26458043,658.01,657.34,2.2739169]
[1750154059934,0.26458043,658.01,657.32,2.2739169]
[1750154062135,0.26458043,658.01,657.33,2.2739169]
[1750154063231,0.26458043,658.01,657.35,2.2739169]
[1750154064334,0.26458043,658.01,657.39,2.2739169]
[1750154064538,0.26458043,658.01,657.4,2.2739169]
[1750154065237,0.26458043,658.01,657.39,2.2739169]
[1750154065438,0.26458043,658.01,657.38,2.2739169]
[1750154065734,0.26458043,658.01,657.39,2.2739169]
[1750154066734,0.26458043,658.01,657.38,2.2739169]
[1750154069234,0.26458043,658.01,657.39,2.2739169]
[1750154069833,0.26458043,658.01,657.11,0.26458245]
[1750154069834,0.26458043,658.01,657.42,2.2739169]
[1750154070337,1.00174701,658.0,657.42,2.2739169]
[1750154070636,1.00174701,657.99,657.11,0.26458245]
[1750154070835,1.00174701,657.98,657.11,0.26458245]
[1750154071035,1.00174701,657.97,657.11,0.26458245]
[1750154071340,1.00174701,657.96,657.11,0.26458245]
[1750154071538,1.00174701,657.95,657.11,0.26458245]
[1750154071738,1.00174701,657.94,657.11,0.26458245]
[1750154071936,1.00174701,657.93,657.11,0.26458245]
[1750154072135,1.00174701,657.92,657.11,0.26458245]
[1750154072339,1.00174701,657.91,657.11,0.26458245]
[1750154072540,1.00174701,657.9,657.11,0.26458245]
[1750154072737,1.00174701,657.89,657.11,0.26458245]
[1750154073040,1.00174701,657.88,657.11,0.26458245]
[1750154073234,1.00174701,657.87,657.11,0.26458245]
[1750154073435,1.00174701,657.86,657.11,0.26458245]
[1750154073637,1.00174701,657.85,657.11,0.26458245]
[1750154073836,1.00174701,657.84,657.11,0.26458245]
[1750154074140,1.00157558,657.83,657.06,0.3043862]
[1750154074438,0.26458043,658.01,657.06,0.3043862]
[1750154074636,1.00144241,658.0,657.06,0.3043862]
[1750154074835,1.00144241,657.99,657.06,0.3043862]
[1750154075036,1.00144241,657.98,657.06,0.3043862]
[1750154075237,1.00144241,657.97,657.06,0.3043862]
[1750154075541,1.00144241,657.96,656.92,2.2739169]
[1750154075736,0.26458043,658.01,656.92,2.2739169]
[1750154075737,1.00144241,657.95,656.92,2.2739169]
[1750154075938,1.00144241,657.94,656.93,2.2739169]
[1750154076137,1.00144241,657.93,656.93,2.2739169]
[1750154076335,0.26458043,658.01,656.91,0.26466495]
[1750154076336,1.00144241,657.92,656.92,2.2739169]
[1750154076542,1.00144241,657.91,656.91,2.53858185]
[1750154076838,1.00144241,657.9,656.91,2.53858185]
[1750154077043,1.00144241,657.89,656.91,2.53858185]
[1750154077242,1.00144241,657.88,656.91,2.53858185]
[1750154077441,1.00144241,657.87,656.91,0.26466495]
[1750154077643,1.00144241,657.86,656.92,2.2739169]
[1750154077840,1.00144241,657.85,656.92,2.2739169]
[1750154078042,1.00144241,657.84,656.92,2.2739169]
[1750154078240,1.00144241,657.83,656.92,2.2739169]
[1750154078441,1.00144241,657.82,656.91,2.53858185]
[1750154078746,1.00144241,657.81,656.91,2.53858185]
[1750154078944,1.00144241,657.8,656.91,2.53858185]
[1750154079142,1.00144241,657.79,656.91,2.53858185]
[1750154079342,0.26458043,658.01,656.91,2.53858185]
[1750154079546,1.00035662,658.0,656.91,0.26466495]
[1750154079746,1.00035662,657.99,656.91,0.26466495]
[1750154079947,1.00035662,657.98,656.91,0.26466495]
[1750154080245,1.00035662,657.97,656.91,0.26466495]
[1750154080444,1.00035662,657.96,656.92,2.2739169]
[1750154080643,1.00035662,657.95,656.92,2.2739169]
[1750154080848,1.00035662,657.94,656.92,2.2739169]
[1750154081143,1.00035662,657.93,656.92,2.2739169]
[1750154081344,1.00035662,657.92,656.91,2.53858185]
[1750154081543,1.00035662,657.91,656.91,2.53858185]
[1750154081743,1.00035662,657.9,656.91,0.26466495]
[1750154081945,1.00035662,657.89,656.93,2.2739169]
[1750154082143,1.00035662,657.88,656.96,2.2739169]
[1750154082344,1.00035662,657.87,656.96,2.2739169]
[1750154082548,1.00035662,657.86,657.08,2.2739169]
[1750154082845,0.26458043,658.01,657.18,2.2739169]
[1750154083046,0.99973205,658.0,657.18,2.2739169]
[1750154083348,0.99973205,657.99,657.19,2.2739169]
[1750154083648,0.99973205,657.98,657.16,2.2739169]
[1750154083847,0.99973205,657.97,657.16,2.2739169]
[1750154084043,0.99973205,657.96,657.15,2.2739169]
[1750154084246,0.99973205,657.95,657.14,2.2739169]
[1750154084445,0.99973205,657.94,657.14,2.2739169]
[1750154084645,0.99973205,657.93,657.14,2.2739169]
[1750154084851,0.99973205,657.92,657.14,2.2739169]
[1750154085050,0.26458043,658.01,657.14,2.2739169]
[1750154085251,0.99936501,658.0,657.14,2.2739169]
[1750154085450,0.99936501,657.99,657.14,2.2739169]
[1750154085646,0.99936501,657.98,657.14,2.2739169]
[1750154085848,0.99936501,657.97,657.14,2.2739169]
[1750154086147,0.99936501,657.96,657.14,2.2739169]
[1750154086347,0.99936501,657.95,657.1,2.2739169]
[1750154086548,0.99936501,657.94,657.1,2.2739169]
[1750154086749,0.99936501,657.93,657.1,2.2739169]
[1750154086947,0.26458043,658.01,657.1,2.2739169]
[1750154087147,0.99919359,658.0,657.1,2.2739169]
[1750154087351,0.99919359,657.99,657.1,2.2739169]
[1750154087646,0.99919359,657.98,657.1,2.2739169]
[1750154087856,0.99919359,657.97,657.09,2.2739169]
[1750154088050,0.99919359,657.96,657.09,2.2739169]
[1750154088354,0.99919359,657.96,656.91,0.26466495]
[1750154088355,0.99919359,657.95,657.06,2.2739169]
[1750154088554,0.99919359,657.94,657.06,2.2739169]
[1750154088755,0.99919359,657.93,657.07,2.2739169]
[1750154088956,0.99919359,657.92,657.06,2.2739169]
[1750154089255,0.26458043,658.01,657.06,2.2739169]
[1750154089455,0.99967383,658.0,657.06,2.2739169]
[1750154089653,0.99967383,657.99,657.06,2.2739169]
[1750154089853,0.99967383,657.98,656.98,2.2739169]
[1750154090154,0.99967383,657.97,656.96,2.2739169]
[1750154090351,0.99967383,657.96,656.96,2.2739169]
[1750154090551,0.99967383,657.95,656.96,2.2739169]
[1750154090756,0.99967383,657.94,656.96,2.2739169]
[1750154090952,0.99967383,657.93,656.96,2.2739169]
[1750154091151,0.99967383,657.92,656.96,2.2739169]
[1750154091354,0.99967383,657.91,656.96,2.2739169]
[1750154091650,0.26458043,658.01,656.97,2.2739169]
[1750154091854,0.99952709,658.0,656.97,2.2739169]
[1750154092153,0.99952709,657.99,656.97,2.2739169]
[1750154092350,0.99952709,657.98,656.97,2.2739169]
[1750154092553,0.99952709,657.97,656.97,2.2739169]
[1750154092853,0.99952709,657.96,656.96,2.2739169]
[1750154093052,0.99952709,657.95,656.97,2.2739169]
[1750154093256,0.99952709,657.94,656.96,2.2739169]
[1750154093456,0.99952709,657.93,656.96,2.2739169]
[1750154093657,0.99952709,657.92,656.96,2.2739169]
[1750154093959,0.99952709,657.91,656.96,2.2739169]
[1750154094257,0.26458043,658.01,656.96,2.2739169]
[1750154094458,0.99944368,658.0,656.97,2.2739169]
[1750154094655,0.99944368,657.99,656.96,2.2739169]
[1750154094859,0.99944368,657.98,656.96,2.2739169]
[1750154095055,0.99944368,657.97,656.96,2.2739169]
[1750154095258,0.99944368,657.96,656.96,2.2739169]
[1750154095456,0.99944368,657.95,656.96,2.2739169]
[1750154095656,0.99944368,657.94,656.96,2.2739169]
[1750154095856,0.26458043,658.01,656.96,2.2739169]
[1750154095857,0.99944368,657.93,656.96,2.2739169]
[1750154096060,0.99944368,657.92,656.96,2.2739169]
[1750154096356,0.99944368,657.91,656.98,2.2739169]
[1750154096557,0.26458043,658.01,656.97,2.2739169]
[1750154096757,0.99936147,658.0,656.95,2.2739169]
[1750154096957,0.99936147,657.99,656.95,2.2739169]
[1750154097161,0.99936147,657.98,656.95,2.2739169]
[1750154097357,0.99936147,657.97,657.0,2.2739169]
[1750154097561,0.99936147,657.96,657.0,2.2739169]
[1750154097758,0.26458043,658.01,657.02,2.2739169]
[1750154097965,0.99934996,658.0,657.02,2.2739169]
[1750154098159,0.99934996,657.99,657.02,2.2739169]
[1750154098363,0.99934996,657.98,657.02,2.2739169]
[1750154098560,0.26458043,658.01,656.91,0.26466495]
[1750154098561,0.99934996,657.97,657.03,2.2739169]
[1750154098760,0.99934996,657.96,657.03,2.2739169]
[1750154099063,0.26458043,658.01,657.03,2.2739169]
[1750154099260,0.99936523,658.0,657.03,2.2739169]
[1750154099460,0.99936523,657.99,657.03,2.2739169]
[1750154099660,0.99936523,657.98,657.01,2.2739169]
[1750154099859,0.99936523,657.97,657.05,2.2739169]
[1750154100060,0.26458043,658.01,657.07,2.2739169]
[1750154100259,0.99938752,658.0,657.07,2.2739169]
[1750154100463,0.99938752,657.99,657.07,2.2739169]
[1750154100763,0.99938752,657.98,657.08,2.2739169]
[1750154100967,0.99938752,657.97,657.08,2.2739169]
[1750154101161,0.26458043,658.01,657.08,2.2739169]
[1750154101465,0.99938872,658.0,657.02,2.2739169]
[1750154101764,0.99938872,657.99,657.03,2.2739169]
[1750154101965,0.99938872,657.98,657.03,2.2739169]
[1750154102165,0.99938872,657.97,657.03,2.2739169]
[1750154102466,0.99938872,657.96,657.02,2.2739169]
[1750154102661,0.99938872,657.95,657.02,2.2739169]
[1750154102965,0.26458043,658.01,656.99,2.2739169]
[1750154103264,0.99945255,658.0,657.0,2.2739169]
[1750154103461,0.99945255,657.99,656.99,2.2739169]
[1750154103661,0.99945255,657.98,656.99,2.2739169]
[1750154103861,0.99945255,657.97,656.99,2.2739169]
[1750154104064,0.99945255,657.96,656.99,2.2739169]
[1750154104261,0.99945255,657.95,656.99,2.2739169]
[1750154104466,0.26458043,658.01,656.99,2.2739169]
[1750154104662,0.9995428,658.0,656.99,2.2739169]
[1750154104864,0.9995428,657.99,656.99,2.2739169]
[1750154105067,0.9995428,657.98,656.99,2.2739169]
[1750154105261,1.30350802,657.97,656.99,2.2739169]
[1750154105467,0.9995428,657.96,657.02,2.2739169]
[1750154105663,0.9995428,657.95,657.02,2.2739169]
[1750154105866,0.9995428,657.94,657.02,2.2739169]
[1750154106163,0.9995428,657.93,657.03,2.2739169]
[1750154106462,0.9995428,657.92,657.03,2.2739169]
[1750154106663,0.9995428,657.91,657.03,2.2739169]
[1750154106863,0.9995428,657.9,657.03,2.2739169]
[1750154107165,0.9995428,657.89,657.0,2.2739169]
[1750154107363,0.9995428,657.88,657.0,2.2739169]
[1750154107563,0.99962078,657.87,657.0,2.2739169]
[1750154107767,0.99962078,657.86,656.99,2.2739169]
[1750154107967,0.99962078,657.85,656.99,2.2739169]
[1750154108168,0.99962078,657.84,656.99,2.2739169]
[1750154108468,0.30396522,657.97,656.99,2.2739169]
[1750154108667,0.99962639,657.96,656.99,2.2739169]
[1750154108863,0.99962639,657.95,656.99,2.2739169]
[1750154109165,0.99962639,657.94,656.99,2.2739169]
[1750154109368,0.99962639,657.93,657.0,2.2739169]
[1750154109568,0.99962639,657.92,656.96,2.2739169]